Cogmind - Beta 13 @@@ ROGUE MODE // 2024.04.03 @ 19:21:12 Player: Leif Result: Destroyed by H-61 Shepherd with Heavy Assault Cannon Performance ------------- Evolutions (2) 1000 Regions Visited (4) 800 Robots Destroyed (38) 190 Value Destroyed (898) 898 Prototype IDs (0) 0 Alien Tech Used (0) 0 Bonus (0) 0 TOTAL SCORE: 2888 Bonus ------- None Cogmind --------- Core Integrity 0/550 Matter 224/300 Energy 99/100 System Corruption 0% Temperature Cool (0) Movement Core (50) Location -8/Materials Parts ------- > --- POWER (1) -------- (None) > --- PROPULSION (4) --- (None) > --- UTILITY (4) ------ (None) > --- WEAPON (2) ------- (None) > --- INVENTORY (5) ---- Compact Battery (200) Compact Battery (39) Signal Interpreter Long-range Tractor Beam Pulse Rifle Peak State ------------ > --- POWER ------------ Light Nuclear Core > --- PROPULSION ------- Improved Aluminum Leg Improved Aluminum Leg Improved Aluminum Leg Improved Aluminum Leg > --- UTILITY ---------- Medium Storage Unit Targeting Computer ECM Suite Hacking Suite > --- WEAPON ----------- Spread Laser Shotgun > --- INVENTORY -------- Ion Engine Heat Sink Compact Battery Signal Interpreter EMP Blaster Grenade Launcher Heavy Explosive Trap Heavy Explosive Trap [Rating: 22] Favorites ----------- Power Ion Engine Engine Ion Engine Power Core Light Nuclear Core Propulsion Improved Aluminum Leg Leg Improved Aluminum Leg Wheel Wheel Utility ECM Suite Device ECM Suite Storage Medium Storage Unit Processor Targeting Computer Hackware Hacking Suite Weapon Assault Rifle Energy Gun Spread Laser Ballistic Gun Assault Rifle Launcher EMP Blaster Build | -11 -10 -9 -9 -8 ------- Run | Yrd Mat Mat Min Mat Slots Evolved 4 | . . 2 . 2 Power . | . . . . . Propulsion 2 | . . 2 . . Utility 2 | . . . . 2 Weapon . | . . . . . Parts Attached 28 | 6 9 5 2 6 Power 3 | 1 1 . . 1 Engine 2 | 1 . . . 1 Core 1 | . 1 . . . Reactor . | . . . . . Propulsion 11 | 2 3 4 2 . Treads . | . . . . . Leg 9 | . 3 4 2 . Wheel 2 | 2 . . . . Hover . | . . . . . Flight . | . . . . . Utility 7 | 1 3 . . 3 Device 3 | . 2 . . 1 Storage 2 | 1 1 . . . Processor 1 | . . . . 1 Hackware 1 | . . . . 1 Protection . | . . . . . Artifact . | . . . . . Weapon 7 | 2 2 1 . 2 Energy Gun 3 | 1 2 . . . Energy Cannon . | . . . . . Ballistic Gun 2 | 1 . 1 . . Ballistic Cannon . | . . . . . Launcher 2 | . . . . 2 Special Weapon . | . . . . . Impact Weapon . | . . . . . Slashing Weapon . | . . . . . Piercing Weapon . | . . . . . Special Melee Weapon . | . . . . . Unidentified Prototypes . | . . . . . Parts Lost 15 | . 2 . . 13 Power 3 | . 1 . . 2 Propulsion 5 | . 1 . . 4 Utility 3 | . . . . 3 Weapon 4 | . . . . 4 Highest Loss Streak 11 | . 1 . . 11 To Critical Strikes . | . . . . . Average Slot Usage (%) 94 | . 97 94 100 56 Engine 7 | . 13 . . . Core 4 | . . 11 11 3 Leg 27 | . 21 38 44 16 Wheel 3 | . 6 . . . Device 11 | . 12 11 11 8 Storage 12 | . 14 11 11 5 Energy Gun 12 | . 13 11 11 4 Ballistic Gun 12 | . 14 11 11 4 Naked Turns 28 | . . . . 28 Heaviest Build 23 | 14 22 23 23 23 Greatest Support 52 | 20 20 52 52 52 Greatest Overweight (x) 2 | . 2 1 . . Average Overweight (x) . | . . . . . Largest Inventory Capacity 10 | 8 10 10 10 10 Average Capacity 9 | 7 9 10 10 7 Most Carried 10 | 6 10 10 10 9 Average Carried 9 | 3 9 9 9 5 Final Capacity 10 | 8 10 10 10 5 Final Carried 10 | 6 10 10 10 5 Class Distribution -------------------- 100% | Mutant Dominant Class ---------------- Mutant | -10/Materials Mutant | -9/Materials Mutant | -9/Mines Mutant | -8/Materials Resources | -11 -10 -9 -9 -8 ----------- Run | Yrd Mat Mat Min Mat Matter Collected 694 | 159 322 142 60 11 Remotely . | . . . . . Salvage Created 934 | . 525 155 37 217 Parts 73 | . 36 17 3 17 Haulers Intercepted 1 | . . . . 1 Recyclers Shooed . | . . . . . Parts Field Recycled . | . . . . . Retrieved Matter . | . . . . . Parts Self-Destructed . | . . . . . Prevented . | . . . . . Kills | -11 -10 -9 -9 -8 ------- Run | Yrd Mat Mat Min Mat Combat Hostiles Destroyed 31 | . 12 7 5 7 Guns 27 | . 11 7 5 4 AOE 4 | . 1 . . 3 Classes Destroyed 6 | . 4 1 . 1 Worker 1 | . 1 . . . Hauler 1 | . . . . 1 Operator 1 | . . 1 . . Watcher 4 | . 2 1 . 1 Swarmer 14 | . 2 4 5 3 Grunt 17 | . 10 3 . 4 Best Kill Streak 9 | . 5 5 3 9 Combat Bots Only 6 | . 4 4 3 6 Max Kills in Single Turn 2 | . 2 2 2 2 Gunslinging 1 | . 1 1 1 . Exploded 2 | . 1 . . 2 Melee . | . . . . . Uniques/NPCs Destroyed . | . . . . . Combat | -11 -10 -9 -9 -8 -------- Run | Yrd Mat Mat Min Mat Hostile Shots Fired 248 | . 54 37 28 129 Missed 81 | . 22 10 9 40 Damage Taken 2140 | . 360 275 149 1356 Core 618 | . 12 44 8 554 Absorbed by Shields . | . . . . . Core Remaining (%) 94 | 100 95 . 87 . Volleys Fired 100 | . 47 23 10 20 Largest 2 | . 2 2 2 2 Hottest 88 | . 85 88 88 88 Shots Fired 190 | . 86 46 20 38 Gun 188 | . 86 46 20 36 Cannon . | . . . . . Launcher 2 | . . . . 2 Special . | . . . . . Kinetic 98 | . 47 23 10 18 Thermal 78 | . 27 23 10 18 Explosive 2 | . . . . 2 Electromagnetic 12 | . 12 . . . Robot Hit Streak 13 | . 13 6 6 9 Robot Miss Streak 10 | . 6 7 10 7 Penetration Max . | . . . . . Secondary Targets 8 | . 4 1 1 2 Max Gunslinging Chain 1 | . 1 1 1 1 Shots Hit Robots 131 | . 45 37 15 34 Core Hits 96 | . 25 31 12 28 Critical Kills . | . . . . . Critical Parts Destroyed 1 | . . 1 . . Critical Strikes 1 | . . 1 . . Destroy 1 | . . 1 . . Melee Attacks . | . . . . . Impact . | . . . . . Slashing . | . . . . . Piercing . | . . . . . Sneak Attacks . | . . . . . Combat Hostiles . | . . . . . Follow-up Attacks . | . . . . . Damage Inflicted 2229 | . 703 497 163 866 Guns 1714 | . 619 497 163 435 Cannons . | . . . . . Explosions 515 | . 84 . . 431 Melee . | . . . . . Ramming . | . . . . . Kinetic 894 | . 323 249 89 233 Thermal 773 | . 249 248 74 202 Explosive 431 | . . . . 431 Electromagnetic 131 | . 131 . . . Impact . | . . . . . Slashing . | . . . . . Piercing . | . . . . . Highest Corruption . | . . . . . Average Corruption . | . . . . . Corruption Purged . | . . . . . Corruption Blocked . | . . . . . Overload Shots . | . . . . . Overflow Damage 6 | . . . . 6 Projectiles . | . . . . . Explosions 6 | . . . . 6 Melee . | . . . . . Knockbacks . | . . . . . Impact . | . . . . . Kinetic . | . . . . . Secondary . | . . . . . Self-Inflicted Damage 20 | . . . . 20 Shots 1 | . . . . 1 Rammed . | . . . . . Targets Rammed . | . . . . . Kicked . | . . . . . Crushed . | . . . . . Highest Temperature 265 | . 82 216 127 265 Average Temperature 75 | . 28 91 58 144 Received Heat Transfer 801 | . 186 111 . 504 Siege Activations . | . . . . . Robots Corrupted . | . . . . . Combat Hostiles . | . . . . . Parts Fried . | . . . . . Impact Corruptions . | . . . . . Robots Melted . | . . . . . Combat Hostiles . | . . . . . Parts Melted . | . . . . . Heat Transferred 1247 | . 592 310 95 250 Parts Sabotaged . | . . . . . Parts Stolen . | . . . . . Parts Stripped . | . . . . . Power Chain Reactions 1 | . 1 . . . Alert | -11 -10 -9 -9 -8 ------- Run | Yrd Mat Mat Min Mat Peak Influence 224 | . 224 218 116 130 Initial 20 | . . 20 6 . Average 61 | . 64 72 59 44 Maximum Alert Level 1 | . 1 1 . . Low Security (%) 97 | 100 97 91 100 100 Level 1 2 | . 2 8 . . Level 2 . | . . . . . Level 3 . | . . . . . Level 4 . | . . . . . Level 5 . | . . . . . High Security . | . . . . . Max Security . | . . . . . Squads Dispatched 11 | . 6 . . 5 Investigation 3 | . 3 . . . Extermination . | . . . . . Reinforcement 6 | . 3 . . 3 Assault . | . . . . . Garrison 2 | . . . . 2 Intercept . | . . . . . Searches Triggered . | . . . . . Construction Impeded . | . . . . . Haulers Reinforced . | . . . . . Active Scanning Responses . | . . . . . Cargo Convoy Interrupts . | . . . . . Stealth | -11 -10 -9 -9 -8 --------- Run | Yrd Mat Mat Min Mat Distress Signals 9 | . 4 2 . 3 Communications Jammed . | . . . . . Distress Signals . | . . . . . Times Spotted 76 | . 21 19 8 28 Peak Tracking Total 9 | . 4 4 4 9 Tactical Retreats 11 | . 2 3 2 4 Traps | -11 -10 -9 -9 -8 ------- Run | Yrd Mat Mat Min Mat Traps Triggered 1 | . 1 . . . Indirectly . | . . . . . Trap Hack Attempts . | . . . . . Triggered . | . . . . . Disarmed . | . . . . . Reprogrammed . | . . . . . Reused . | . . . . . Traps Extracted . | . . . . . Installed . | . . . . . Triggered . | . . . . . Most Traps Carried 2 | . . . 2 2 Machines | -11 -10 -9 -9 -8 ---------- Run | Yrd Mat Mat Min Mat Machines Disabled 1 | . 1 . . . Max in Single Turn 1 | . 1 . . . Machines Repaired . | . . . . . Machines Dismantled . | . . . . . Machines Sabotaged . | . . . . . Overloaded Fab Kills . | . . . . . Hacking | -11 -10 -9 -9 -8 --------- Run | Yrd Mat Mat Min Mat Machines Accessed 7 | . 3 4 . . Terminals 6 | . 3 3 . . Fabricators . | . . . . . Repair Stations . | . . . . . Recycling Units 1 | . . 1 . . Scanalyzers . | . . . . . Garrison Access . | . . . . . Total Hacks 12 | . 5 7 . . Successful 4 | . . 4 . . Failed 8 | . 5 3 . . Catastrophic 4 | . 3 1 . . Database Lockouts . | . . . . . Manual 12 | . 8 4 . . Terminals 10 | . 5 5 . . Fabricators . | . . . . . Repair Stations . | . . . . . Recycling Units 2 | . . 2 . . Scanalyzers . | . . . . . Garrison Access . | . . . . . Terminal Hacks 3 | . . 3 . . Branch Access Points 1 | . . 1 . . Emergency Access Points 1 | . . 1 . . Alert Level 1 | . . 1 . . Fabricator Hacks . | . . . . . Repair Station Hacks . | . . . . . Recycling Unit Hacks . | . . . . . Scanalyzer . | . . . . . Garrison Access Hacks . | . . . . . Unauthorized Hacks 1 | . . 1 . . Terminals . | . . . . . Fabricators . | . . . . . Repair Stations . | . . . . . Recycling Units 1 | . . 1 . . Mask 1 | . . 1 . . Scanalyzers . | . . . . . Garrison Access . | . . . . . Data Cores Recovered 1 | . . 1 . . Used . | . . . . . Hacking Detections 6 | . 3 3 . . Full Trace Events . | . . . . . Feedback Events . | . . . . . Feedback Blocked . | . . . . . Robot Schematics Acquired . | . . . . . Robots Built . | . . . . . Authchips . | . . . . . Time . | . . . . . Total Robot Build Rating . | . . . . . Part Schematics Acquired . | . . . . . Parts Built . | . . . . . Authchips . | . . . . . Time . | . . . . . Total Part Build Rating . | . . . . . Parts Repaired . | . . . . . Time . | . . . . . Parts Recycled . | . . . . . Recycled Matter . | . . . . . Retrieved Matter . | . . . . . Retrieved Components . | . . . . . Parts Scanalyzed . | . . . . . Part Schematics Acquired . | . . . . . Parts Damaged . | . . . . . Bothacking | -11 -10 -9 -9 -8 ------------ Run | Yrd Mat Mat Min Mat Used RIF Installer . | . . . . . Robots Hacked . | . . . . . Non-combat . | . . . . . Combat . | . . . . . Robot Hacks Applied . | . . . . . Relay Couplers Released . | . . . . . Fabnet Peak Effective % . | . . . . . Robots Rewired . | . . . . . Allies Hacked . | . . . . . Hacks Repelled . | . . . . . Allies | -11 -10 -9 -9 -8 -------- Run | Yrd Mat Mat Min Mat Total Allies . | . . . . . Largest Group . | . . . . . Highest-Rated Group . | . . . . . Highest-Rated Ally . | . . . . . Total Orders . | . . . . . Ally Attacks . | . . . . . Total Damage . | . . . . . Kills . | . . . . . Allies Corrupted . | . . . . . Allies Melted . | . . . . . Intel | -11 -10 -9 -9 -8 ------- Run | Yrd Mat Mat Min Mat Robot Analysis Total . | . . . . . Derelict Logs Recovered 1 | . . . 1 . Drone Launches . | . . . . . Drone Recoveries . | . . . . . Exploration | -11 -10 -9 -9 -8 ------------- Run | Yrd Mat Mat Min Mat Turns Passed 2625 | 59 1465 427 454 220 Spaces Moved 1699 | 50 849 242 339 219 Core 195 | 12 . . . 183 Treads . | . . . . . Legs 1131 | . 514 242 339 36 Wheels 373 | 38 335 . . . Hover . | . . . . . Flight . | . . . . . Fastest Speed 50 | 50 80 120 120 50 Average Speed 126 | 72 147 133 120 61 Slowest Speed 190 | 80 190 190 120 120 Overloaded Moves . | . . . . . Propulsion Burnouts . | . . . . . Robots Hopped . | . . . . . Cave-ins Triggered . | . . . . . Exploration Rate (%) 37 | 4 80 19 53 29 Regions Visited 4 Branch Regions 1 Pre-discovered Areas . | . . . . . Known Exits Taken 1 | . . 1 . . Unknown Exits Taken 3 | 1 1 . 1 . Scrap Searched 2 | . . . 2 . Spaces Dug . | . . . . . Terrain Destroyed 14 | . 5 . . 9 Melee . | . . . . . Projectile . | . . . . . AOE 14 | . 5 . . 9 Terrain Rammed . | . . . . . Walls Destroyed . | . . . . . Machines Disabled . | . . . . . Actions | -11 -10 -9 -9 -8 --------- Run | Yrd Mat Mat Min Mat Total 1985 | 72 978 301 366 268 Wait 109 | 5 55 21 12 16 Move 1695 | 49 848 241 338 219 Hop . | . . . . . Pick Up 32 | 12 11 4 2 3 Fast Attach 6 | . 3 3 . . Attach 14 | 6 2 . . 6 Detach . | . . . . . Swap 8 | . 4 2 2 . Drop 21 | . 8 7 2 4 Fire 100 | . 47 23 10 20 Melee . | . . . . . Ram . | . . . . . Kick . | . . . . . Crush . | . . . . . Escape Stasis . | . . . . . Rewire . | . . . . . Trap . | . . . . . Miscellaneous . | . . . . . Route ------- -11/Scrapyard -10/Materials (discovered 3 exits: *Mat x3) -9/Materials (discovered 4 exits: *Min x2 / Sto x2) -9/Mines (discovered 2 exits: *Mat / [*Exi]) -8/Materials History --------- Turn | Location | Event 2 | -11/Scrapyard | Met Revision 17 5 | -11/Scrapyard | Discovered new exit (range 15) 60 | -11/Scrapyard | Entered Materials 303 | -10/Materials | Build established: Mutant 500 | -10/Materials | Derelicts attacked the area 722 | -10/Materials | Discovered new exit (range 12) 810 | -10/Materials | Discovered new exit (range 14) 1325 | -10/Materials | Discovered new exit (range 13) 1525 | -10/Materials | Entered another Materials area 1525 | -9/Materials | Evolved 2 slots: Propulsion x2 1525 | -9/Materials | Discovered new exit (range 7) 1570 | -9/Materials | Identified exit to Mines 1570 | -9/Materials | Identified exit to Storage 1952 | -9/Materials | Entered Mines 1960 | -9/Mines | Learned Materials security intel 1970 | -9/Mines | Found a hidden stash of uninstalled traps 2289 | -9/Mines | Deemed a non-threat by the Exiles lab entrance 2289 | -9/Mines | Discovered new exit (range 5) 2395 | -9/Mines | Discovered new exit (range 9) 2403 | -9/Mines | Assembled infested the area 2406 | -9/Mines | Entered Materials 2406 | -8/Materials | Evolved 2 slots: Utility x2 2494 | -8/Materials | Garrison activated, responded to threat 2532 | -8/Materials | Core integrity fell below 50% 2560 | -8/Materials | Lost 11 parts (2p4n1u4w) 2608 | -8/Materials | Core integrity fell below 20% 2626 | -8/Materials | Destroyed by H-61 Shepherd with Heavy Assault Cannon Last Messages --------------- 02534_ Acquired 11 matter. 02534_ U-05 Engineer lays Concrete. 02534_ U-05 Engineer builds a Wall. 02536_ U-05 Engineer lays Concrete. 02536_ Slug penetrates G-47 Trooper. 02537_ U-05 Engineer lays Concrete. 02538_ U-05 Engineer builds a Door. 02550_ Acquired Pulse Rifle. 02553_ Acquired Lrn. Tractor Beam. 02569_ Acquired Com. Battery. 02582_ Drone sends a signal. 02584_ O-16 Technician: "IFF HANDSHAKE FAILED. SECURING TERMINAL." 02588_ ALERT: Hostiles spotted, dispatching reinforcements to Terminal M006. 02594_ ECM Suite destroyed. 02598_ Hacking Suite destroyed. 02601_ S-10 Pest destroyed. 02606_ Slug penetrates Wall. 02609_ K-01 Serf cleans the Scanalyzer. 02624_ Knocked back. Map ----- +----------------------------------------------------+ | ????????????????????# +????????# """ # #? | | ????????????????????# #????????# """ + #? | | ????????????????????# #????????# # #? | | ????????????????????# ###########+##### #? | | ????????????????????# # # #???### ###? | | ???????????????????## # "S #%###???? #??? | | ???????????????????# + """ # ####? #??? | | ???????????????????# ###### "" """ " #??? | | ?????????????????###+##???# """ # #######??? | | ?????????????????# #???# """ # #????????? | | ?????????????????# #???# # #????????? | | ?????????????????# #???# # #????????? | | ?????????????????# #???########### #????????? | | ?????????????????# #?????????????+ #????????? | | ?????????????????# #?????????????# #????????? | | ?????????????????# #?????????????? #????????? | | ?????????????????# #?????????????? #????????? | | ?????????????????# #?????????????? #????????? | | ?????????????????###+##?????????????? #????????? | | ???????????????????# #??????????????? #????????? | | ???????????????????# ###########????? #????????? | | ???????????????????# ##### ?????????? | | ???????????????????# H ?????????? | | ???????????????????# % ????????? | | ???????????????????# ??????????? | | ???????????????????# @ ##### ????????????? | | ???????????????????#########+###?????????????????? | | ?????????????????????????????????????????????????? | | ?????????????????????????????????????????????????? | | ?????????????????????????????????????????????????? | | ?????????????????????????????????????????????????? | | ?????????????????????????????????????????????????? | | ?????????????????????????????????????????????????? | | ?????????????????????????????????????????????????? | | ?????????????????????????????????????????????????? | | ?????????????????????????????????????????????????? | | ?????????????????????????????????????????????????? | | ?????????????????????????????????????????????????? | | ?????????????????????????????????????????????????? | | | | | | | | | | | | | | | | | | | | | | | +----------------------------------------------------+ Best States ------------- Heat Dissipation 41 Energy Generation 14 Energy Capacity 250 Matter Stores 300 Matter Capacity 300 Sight Range 16 Terrain Scan Density 10 ECM Strength 1 Evasion (%) 55 Targeting Accuracy 5 Offensive Hacking 10 Item Schematics ----------------- None Robot Schematics ------------------ None Fabricated ------------ Nothing Alien Tech Used ----------------- None Achievements -------------- None Challenges ------------ None Game ------ Seed ConcussiveWarpStick Manual? 0 Play Time 00:26:44 Cumulative 52.5 hours Start 2024.03.30 @ 16:21:15 End 2024.04.03 @ 19:21:12 Sessions 2 Manual Loads 0 Difficulty Rogue Special Mode None Game No. 124 Rogue 124 Adventurer 0 Explorer 0 Win Type - Total 1 Types 1/0/0/0/0/0/0/0/0 Lore% 35 Gallery% 45 Achievement% 35 Wizard Run 0 Options --------- Layout 0 ASCII 0 Keyboard 0 Movement Mouse Keybinds 0 Fullscreen 2 Font 18/SmallcapsGlow Map View 76x50 Zoom Use 0% Tactical HUD 1 Map Filters NONE Filters NONE Steam 1 RUN: 0562753e-da2e-4973-af9e-8781991f91a1